fUST/lending_fUST_20250206
["ID","MTS","AMOUNT","RATE_DAILY","PERIOD"]
[351934329,1738849844804,-151.0,0.00014109,2]
[351934330,1738849844813,-500.0,0.00014109,2]
[351934331,1738849844825,-500.0,0.00014109,2]
[351934332,1738849844834,-500.0,0.00014109,2]
[351934333,1738849844843,-697.88,0.00014109,2]
[351934334,1738849844853,-500.0,0.00014109,2]
[351934335,1738849844863,-1046.97,0.00014109,2]
[351934336,1738849844872,-1351.13,0.00014109,2]
[351934337,1738849844882,-500.0,0.00014109,2]
[351934338,1738849844891,-500.0,0.00014109,2]
[351934339,1738849844900,-500.0,0.00014109,2]
[351934340,1738849844910,-726.45,0.00014109,2]
[351934341,1738849844919,-12071.28,0.00014109,2]
[351934342,1738849844928,-876.74,0.00014109,2]
[351934343,1738849844938,-1215.7,0.00014109,2]
[351934344,1738849844948,-579.24,0.00014109,2]
[351934345,1738849844958,-1111.41,0.00014109,2]
[351934346,1738849844968,-500.0,0.00014109,2]
[351934347,1738849844978,-857.11,0.00014109,2]
[351934348,1738849844988,-2699.38,0.00014109,2]
[351934349,1738849844998,-6118.81,0.00014109,2]
[351934350,1738849845008,-500.0,0.00014109,2]
[351934351,1738849845019,-1724.98,0.00014109,2]
[351934352,1738849845028,-1051.11,0.00014109,2]
[351934353,1738849845037,-3277.5,0.00014109,2]
[351934354,1738849845046,-500.0,0.00014109,2]
[351934355,1738849845056,-501.81,0.00014109,2]
[351934356,1738849845065,-911.31,0.00014109,2]
[351934357,1738849845075,-500.0,0.00014109,2]
[351934358,1738849845085,-1118.06,0.00014109,2]
[351934359,1738849845094,-151.0,0.00014109,2]
[351934360,1738849845104,-151.0,0.00014109,2]
[351934361,1738849845113,-151.0,0.00014109,2]
[351934362,1738849845122,-500.0,0.00014109,2]
[351934363,1738849845131,-1201.68,0.00014109,2]
[351934364,1738849845141,-4158.51,0.00014109,2]
[351934365,1738849845150,-500.0,0.00014109,2]
[351934366,1738849845160,-151.0,0.00014109,2]
[351934367,1738849845169,-1201.39,0.00014109,2]
[351934368,1738849845179,-500.0,0.00014109,2]
[351934369,1738849845188,-151.0,0.00014109,2]
[351934370,1738849845198,-2211.49,0.00014109,2]
[351934371,1738849845207,-1018.97,0.00014109,2]
[351934372,1738849845217,-151.0,0.00014109,2]
[351934373,1738849845227,-2046.51,0.00014109,2]
[351934374,1738849845236,-5683.57,0.00014109,2]
[351934375,1738849845245,-151.0,0.00014109,2]
[351934376,1738849845255,-40797.68,0.00014109,2]
[351934377,1738849845264,-151.0,0.00014109,2]
[351934378,1738849845274,-698.16,0.00014109,2]
[351934379,1738849845283,-500.0,0.00014109,2]
[351934380,1738849845292,-162.63639976,0.00014109,2]
[351934381,1738849845302,-1682.12,0.00014109,2]
[351934382,1738849845311,-16766.62,0.00014109,2]
[351934383,1738849845324,-500.0,0.00014109,2]
[351934384,1738849845334,-2365.62,0.00014109,2]
[351934386,1738849845344,-500.0,0.00014109,2]
[351934387,1738849845354,-2380.35,0.00014109,2]
[351934388,1738849845363,-151.0,0.00014109,2]
[351934389,1738849845373,-500.0,0.00014109,2]
[351934391,1738849845382,-1507.93,0.00014109,2]
[351934392,1738849845392,-644.09,0.00014109,2]
[351934393,1738849845401,-1564.44,0.00014109,2]
[351934394,1738849845411,-151.0,0.00014109,2]
[351934395,1738849845420,-500.0,0.00014109,2]
[351934397,1738849845429,-703.94,0.00014109,2]
[351934398,1738849845439,-500.0,0.00014109,2]
[351934400,1738849845449,-500.0,0.00014109,2]
[351934401,1738849845459,-1357.54,0.00014109,2]
[351934402,1738849845468,-500.0,0.00014109,2]
[351934403,1738849845478,-500.0,0.00014109,2]
[351934404,1738849845487,-780.62,0.00014109,2]
[351934405,1738849845496,-500.0,0.00014109,2]
[351934406,1738849845505,-955.32,0.00014109,2]
[351934407,1738849845514,-151.0,0.00014109,2]
[351934408,1738849845523,-500.0,0.00014109,2]
[351934409,1738849845532,-500.0,0.00014109,2]
[351934410,1738849845541,-966.89,0.00014109,2]
[351934411,1738849845551,-3605.2,0.00014109,2]
[351934412,1738849845560,-500.0,0.00014109,2]
[351934413,1738849845570,-4473.78,0.00014109,2]
[351934414,1738849845579,-1512.68,0.00014109,2]
[351934415,1738849845590,-500.0,0.00014109,2]
[351934416,1738849845602,-214.61767,0.00014109,2]
[351934417,1738849845611,-1858.52,0.00014109,2]
[351934418,1738849845620,-500.0,0.00014109,2]
[351934419,1738849845630,-961.53,0.00014109,2]
[351934420,1738849845640,-214.61767,0.00014109,2]
[351934421,1738849845651,-875.81,0.00014109,2]
[351934422,1738849845660,-500.0,0.00014109,2]
[351934423,1738849845670,-1808.26,0.00014109,2]
[351934424,1738849845680,-3288.75,0.00014109,2]
[351934425,1738849845689,-9267.35,0.00014109,2]
[351934426,1738849845699,-500.0,0.00014109,2]
[351934427,1738849845708,-500.0,0.00014109,2]
[351934428,1738849845718,-500.0,0.00014109,2]
[351934430,1738849845727,-863.363704,0.00014109,2]
[351934431,1738849845736,-863.363704,0.00014109,2]
[351934432,1738849845745,-833.85,0.00014109,2]
[351934433,1738849845755,-942.47,0.00014109,2]
[351934434,1738849845765,-2160.78,0.00014109,2]
[351934435,1738849845774,-787.55,0.00014109,2]
[351934436,1738849845785,-151.0,0.00014109,2]
[351934437,1738849845795,-151.0,0.00014109,2]
[351934438,1738849845806,-151.0,0.00014109,2]
[351934439,1738849845816,-500.0,0.00014109,2]
[351934440,1738849845826,-637.05,0.00014109,2]
[351934441,1738849845836,-199.691131,0.00014109,2]
[351934442,1738849845845,-151.0,0.00014109,2]
[351934444,1738849845854,-500.0,0.00014109,2]
[351934446,1738849845864,-1410.06,0.00014109,2]
[351934447,1738849845873,-500.0,0.00014109,2]
[351934448,1738849845882,-1000.0,0.00014113,2]
[351934449,1738849845891,-13262.49839917,0.00014137,2]
[351934450,1738849845900,-153.0,0.00014164,2]
[351934451,1738849845910,-1000.0,0.00014173,2]
[351934452,1738849845919,-223.86837158,0.00014199,2]
[351934453,1738849845929,-188350.19449714,0.000142,5]
[351934454,1738849845938,-100813.74174352,0.000142,5]
[351934455,1738849845948,-151.0,0.000142,2]
[351934456,1738849845957,-696.0,0.000142,5]
[351934457,1738849845966,-127009.0990877,0.000142,5]
[351934458,1738849846432,-500.0,0.00013698,2]
[351934459,1738849846443,-500.0,0.00013835,2]
[351934460,1738849846453,-500.0,0.00013972,2]
[351934461,1738849846464,-500.0,0.00014109,2]
[351934462,1738849846474,-406.31451742,0.000142,5]
[351934463,1738849846493,-151.0,0.00014109,2]
[351934464,1738849846503,-5525.71307813,0.000142,5]
[351934465,1738849846707,-500.0,0.00013698,2]
[351934466,1738849846717,-500.0,0.00013835,2]
[351934467,1738849846727,-500.0,0.00013972,2]
[351934468,1738849846736,-11844.1234518,0.000142,5]
[351934469,1738849846751,-2525.9013572,0.000142,5]
[351934470,1738849847023,-655.5,0.00013698,2]
[351934471,1738849847034,-529.68,0.00013698,2]
[351934472,1738849847043,-655.5,0.00013835,2]
[351934473,1738849847054,-529.68,0.00013835,2]
[351934474,1738849847064,-655.5,0.00013972,2]
[351934475,1738849847080,-529.68,0.00013972,2]
[351934476,1738849847090,-655.5,0.00014109,2]
[351934477,1738849847101,-529.68,0.00014109,2]
[351934478,1738849847111,-8015.11119075,0.000142,5]
[351934479,1738849847124,-2074.0,0.000142,5]
[351934493,1738850736147,-652.68,0.00010959,2]
[351934494,1738850736171,-221.03260281,0.00012561,2]
[351934495,1738850827087,-28.96739719,0.00012561,2]
[351934496,1738850827109,-300.0,0.00012765,2]
[351934497,1738850827131,-422.84085387,0.00012766,2]
[351934498,1738850849138,-1732.40264761,0.00012766,2]
[351934499,1738850950135,-660.8924,0.00012639,2]
[351934548,1738851032396,-14.5236,0.00012639,2]
[351934549,1738851032406,-300.0,0.00012765,2]
[351934550,1738851032415,-22744.75649852,0.00012766,2]
[351934552,1738851032425,-700.0,0.0001315,2]
[351934553,1738851032434,-2719.8745667,0.0001315,2]
[351934555,1738851032443,-164.792777,0.0001356,3]
[351934556,1738851032452,-237.9977596,0.00013598,2]
[351934558,1738851032464,-500.0,0.00013673,2]
[351934560,1738851032473,-7438.69753278,0.00013676,2]
[351934561,1738851032484,-500.0,0.00013698,2]
[351934563,1738851032494,-500.0,0.00013698,2]
[351934564,1738851032503,-248.77942215,0.00013698,2]
[351934565,1738851032513,-521.09563371,0.00013698,2]
[351934567,1738851032522,-500.0,0.00013698,2]
[351934569,1738851032532,-500.0,0.00013698,2]
[351934570,1738851032541,-500.0,0.00013698,2]
[351934572,1738851032551,-500.0,0.00013698,2]
[351934573,1738851032561,-711.94,0.00013698,2]
[351934574,1738851032570,-500.0,0.00013698,2]
[351934575,1738851032579,-609.26487491,0.00013698,2]
[351934576,1738851032589,-500.0,0.00013698,2]
[351934577,1738851032599,-390.85512548,0.00013698,2]
[351934578,1738851032608,-500.0,0.00013698,2]
[351934579,1738851032617,-500.0,0.00013698,2]
[351934580,1738851032626,-500.0,0.00013698,2]
[351934581,1738851032636,-500.0,0.00013698,2]
[351934582,1738851032645,-500.0,0.00013698,2]
[351934583,1738851032654,-500.0,0.00013698,2]
[351934584,1738851032663,-500.0,0.00013698,2]
[351934585,1738851032673,-500.0,0.00013698,2]
[351934586,1738851032682,-500.0,0.00013698,2]
[351934587,1738851032691,-500.0,0.00013698,2]
[351934588,1738851032700,-500.0,0.00013698,2]
[351934589,1738851032710,-500.0,0.00013698,2]
[351934590,1738851032720,-500.0,0.00013698,2]
[351934591,1738851032730,-500.0,0.00013698,2]
[351934592,1738851032739,-500.0,0.00013698,2]
[351934593,1738851032748,-500.0,0.00013698,2]
[351934594,1738851032757,-755.1,0.00013698,2]
[351934595,1738851032767,-500.0,0.00013698,2]
[351934596,1738851032776,-500.0,0.00013698,2]
[351934597,1738851032785,-500.0,0.00013698,2]
[351934598,1738851032795,-500.0,0.00013698,2]
[351934599,1738851032804,-1000.0,0.00013698,2]
[351934600,1738851032813,-500.0,0.00013698,2]
[351934601,1738851032821,-500.0,0.00013698,2]
[351934602,1738851032831,-525.19,0.00013698,2]
[351934603,1738851032840,-500.0,0.00013698,2]
[351934604,1738851032849,-500.0,0.00013698,2]
[351934605,1738851032858,-501.23005317,0.00013698,2]
[351934606,1738851032867,-500.0,0.00013698,2]
[351934607,1738851032876,-502.93224134,0.00013698,2]
[351934608,1738851032886,-500.0,0.00013698,2]
[351934609,1738851032895,-500.0,0.00013698,2]
[351934610,1738851032905,-500.0,0.00013698,2]
[351934611,1738851032915,-500.0,0.00013698,2]
[351934612,1738851032924,-248.360475,0.00013698,2]
[351934613,1738851032933,-500.0,0.00013698,2]
[351934614,1738851032943,-500.0,0.00013698,2]
[351934615,1738851032959,-1512.68,0.00013698,2]
[351934616,1738851032969,-524.13690435,0.00013698,2]
[351934617,1738851032979,-500.0,0.00013698,2]
[351934618,1738851032990,-500.0,0.00013698,2]
[351934619,1738851032999,-500.0,0.00013698,2]
[351934620,1738851033008,-502.08279943,0.00013698,2]
[351934621,1738851033018,-500.0,0.00013698,2]
[351934622,1738851033029,-500.0,0.00013698,2]
[351934623,1738851033039,-500.0,0.00013698,2]
[351934624,1738851033048,-214.4924377,0.00013698,2]
[351934625,1738851033058,-500.0,0.00013698,2]
[351934626,1738851033067,-500.0,0.00013698,2]
[351934627,1738851033077,-500.0,0.00013698,2]
[351934628,1738851033087,-500.0,0.00013698,2]
[351934629,1738851033096,-500.0,0.00013698,2]
[351934630,1738851033105,-500.0,0.00013698,2]
[351934631,1738851033114,-500.0,0.00013698,2]
[351934632,1738851033124,-500.0,0.00013698,2]
[351934633,1738851033134,-467.40683247,0.00013698,2]
[351934634,1738851033143,-500.0,0.00013698,2]
[351934635,1738851033152,-500.0,0.00013698,2]
[351934636,1738851033161,-500.0,0.00013698,2]
[351934637,1738851033170,-500.0,0.00013698,2]
[351934638,1738851033179,-500.0,0.00013698,2]
[351934639,1738851033189,-500.0,0.00013698,2]
[351934640,1738851033198,-500.0,0.00013698,2]
[351934641,1738851033207,-500.0,0.00013698,2]
[351934642,1738851033217,-500.0,0.00013698,2]
[351934643,1738851033227,-500.0,0.00013698,2]
[351934644,1738851033236,-500.0,0.00013698,2]
[351934645,1738851033245,-500.0,0.00013698,2]
[351934646,1738851033255,-500.0,0.00013698,2]
[351934647,1738851033264,-500.0,0.00013698,2]
[351934648,1738851033274,-500.0,0.00013698,2]
[351934649,1738851033283,-500.0,0.00013698,2]
[351934650,1738851033292,-500.0,0.00013698,2]
[351934651,1738851033301,-500.0,0.00013698,2]
[351934652,1738851033311,-500.0,0.00013698,2]
[351934653,1738851033320,-500.0,0.00013698,2]
[351934654,1738851033330,-500.0,0.00013698,2]
[351934655,1738851033339,-500.0,0.00013698,2]
[351934656,1738851033348,-508.17400798,0.00013698,2]
[351934657,1738851033357,-500.0,0.00013698,2]
[351934658,1738851033367,-500.0,0.00013698,2]
[351934659,1738851033376,-500.0,0.00013698,2]
[351934660,1738851033386,-500.0,0.00013698,2]
[351934661,1738851033395,-500.0,0.00013698,2]
[351934662,1738851033404,-500.0,0.00013698,2]
[351934663,1738851033419,-500.0,0.00013698,2]
[351934664,1738851033428,-500.0,0.00013698,2]
[351934665,1738851033437,-500.0,0.00013698,2]
[351934666,1738851033446,-500.0,0.00013698,2]
[351934667,1738851033456,-500.0,0.00013698,2]
[351934668,1738851033465,-500.0,0.00013698,2]
[351934669,1738851033474,-500.0,0.00013698,2]
[351934670,1738851033483,-500.0,0.00013698,2]
[351934671,1738851033493,-500.0,0.00013698,2]
[351934672,1738851033503,-500.0,0.00013698,2]
[351934673,1738851033513,-500.0,0.00013698,2]
[351934674,1738851033522,-500.0,0.00013698,2]
[351934675,1738851033532,-500.0,0.00013698,2]
[351934676,1738851033542,-500.0,0.00013698,2]
[351934677,1738851033551,-868.38,0.00013698,2]
[351934678,1738851033561,-500.0,0.00013698,2]
[351934679,1738851033571,-500.0,0.00013698,2]
[351934680,1738851033580,-500.0,0.00013698,2]
[351934681,1738851033590,-500.0,0.00013698,2]
[351934682,1738851033599,-500.0,0.00013698,2]
[351934683,1738851033608,-500.0,0.00013698,2]
[351934684,1738851033618,-500.0,0.00013698,2]
[351934685,1738851033626,-500.0,0.00013698,2]
[351934686,1738851033634,-500.0,0.00013698,2]
[351934687,1738851033643,-500.0,0.00013698,2]
[351934688,1738851033652,-500.0,0.00013698,2]
[351934689,1738851033661,-500.0,0.00013698,2]
[351934690,1738851033671,-500.0,0.00013698,2]
[351934691,1738851033680,-775.95,0.00013698,2]
[351934692,1738851033690,-500.0,0.00013698,2]
[351934693,1738851033699,-500.0,0.00013698,2]
[351934694,1738851033711,-500.0,0.00013698,2]
[351934695,1738851033720,-614.51,0.00013698,2]
[351934696,1738851033732,-500.0,0.00013698,2]
[351934697,1738851033741,-500.0,0.00013698,2]
[351934698,1738851033751,-500.0,0.00013698,2]
[351934699,1738851033761,-500.0,0.00013698,2]
[351934700,1738851033770,-500.0,0.00013698,2]
[351934701,1738851033780,-538.7,0.00013698,2]
[351934702,1738851033789,-500.0,0.00013698,2]
[351934703,1738851033799,-500.0,0.00013698,2]
[351934704,1738851033809,-500.0,0.00013698,2]
[351934705,1738851033819,-500.81490185,0.00013698,2]
[351934706,1738851033828,-500.0,0.00013698,2]
[351934707,1738851033838,-584.16711782,0.00013698,2]
[351934708,1738851033848,-500.0,0.00013698,2]
[351934709,1738851033858,-500.0,0.00013698,2]
[351934710,1738851033868,-884.55,0.00013698,2]
[351934711,1738851033878,-500.0,0.00013698,2]
[351934712,1738851033888,-500.0,0.00013698,2]
[351934713,1738851033898,-500.0,0.00013698,2]
[351934714,1738851033908,-500.0,0.00013698,2]
[351934715,1738851033917,-500.0,0.00013698,2]
[351934716,1738851033927,-500.0,0.00013698,2]
[351934717,1738851033937,-500.0,0.00013698,2]
[351934718,1738851033947,-500.0,0.00013698,2]
[351934719,1738851033960,-500.0,0.00013698,2]
[351934720,1738851033970,-500.0,0.00013698,2]
[351934721,1738851033980,-360.59082124,0.00013698,2]
[351934722,1738851033990,-1182.74,0.00013698,2]
[351934723,1738851034000,-500.0,0.00013698,2]
[351934724,1738851034010,-500.0,0.00013698,2]
[351934725,1738851034019,-10.48137735,0.00013698,2]
[351934745,1738851038150,-489.51862265,0.00013698,2]
[351934747,1738851038160,-500.0,0.00013698,2]
[351934749,1738851038169,-500.0,0.00013698,2]
[351934751,1738851038179,-500.0,0.00013698,2]
[351934753,1738851038189,-500.89598415,0.00013698,2]
[351934755,1738851038198,-232.3743042,0.00013698,2]
[351934757,1738851038210,-267.6256958,0.00013698,2]
[351934759,1738851038220,-500.0,0.00013698,2]
[351934761,1738851038229,-500.0,0.00013698,2]
[351934763,1738851038239,-500.0,0.00013698,2]
[351934765,1738851038249,-505.91623262,0.00013698,2]
[351934767,1738851038259,-500.0,0.00013698,2]
[351934770,1738851038269,-500.0,0.00013698,2]
[351934773,1738851038279,-500.0,0.00013698,2]
[351934777,1738851038289,-201.92633535,0.00013698,2]
[351934781,1738851038298,-500.0,0.00013698,2]
[351934784,1738851038308,-500.0,0.00013698,2]
[351934787,1738851038317,-500.22167013,0.00013698,2]
[351934789,1738851038327,-515.22791306,0.00013698,2]
[351934791,1738851038337,-500.0,0.00013698,2]
[351934793,1738851038346,-500.0,0.00013698,2]
[351934795,1738851038355,-500.0,0.00013698,2]
[351934797,1738851038365,-500.9944304,0.00013698,2]
[351934799,1738851038374,-500.0,0.00013698,2]
[351934801,1738851038385,-500.0,0.00013698,2]
[351934803,1738851038395,-500.0,0.00013698,2]
[351934805,1738851038405,-500.0,0.00013698,2]
[351934807,1738851038414,-500.07064162,0.00013698,2]
[351934809,1738851038423,-500.0,0.00013698,2]
[351934811,1738851038433,-500.0,0.00013698,2]
[351934813,1738851038442,-500.0,0.00013698,2]
[351934815,1738851038451,-500.0,0.00013698,2]
[351934817,1738851038463,-500.0,0.00013698,2]
[351934819,1738851038472,-558.10898564,0.00013698,2]
[351934821,1738851038481,-500.0,0.00013698,2]
[351934823,1738851038490,-500.0,0.00013698,2]
[351934825,1738851038499,-500.0,0.00013698,2]
[351934827,1738851038508,-211.83795287,0.00013698,2]
[351934829,1738851038517,-504.0293553,0.00013698,2]
[351934831,1738851038526,-500.0,0.00013698,2]
[351934833,1738851038536,-500.0,0.00013698,2]
[351934835,1738851038545,-500.0,0.00013698,2]
[351934837,1738851038554,-500.0,0.00013698,2]
[351934839,1738851038564,-500.0,0.00013698,2]
[351934841,1738851038573,-500.0,0.00013698,2]
[351934843,1738851038583,-500.0,0.00013698,2]
[351934845,1738851038593,-621.75,0.00013698,2]
[351934847,1738851038603,-1597.37,0.00013698,2]
[351934849,1738851038613,-501.38986885,0.00013698,2]
[351934851,1738851038622,-500.0,0.00013698,2]
[351934853,1738851038632,-513.11074289,0.00013698,2]
[351934855,1738851038641,-500.0,0.00013698,2]
[351934857,1738851038650,-500.0,0.00013698,2]
[351934859,1738851038659,-500.0,0.00013698,2]
[351934861,1738851038669,-500.0,0.00013698,2]
[351934863,1738851038679,-500.0,0.00013698,2]
[351934865,1738851038688,-500.0,0.00013698,2]
[351934867,1738851038699,-502.44808444,0.00013698,2]
[351934869,1738851038711,-1708.57,0.00013698,2]
[351934871,1738851038723,-500.0,0.00013698,2]
[351934873,1738851038732,-500.0,0.00013698,2]
[351934875,1738851038742,-500.0,0.00013698,2]
[351934877,1738851038752,-500.0,0.00013698,2]
[351934879,1738851038761,-500.0,0.00013698,2]
[351934881,1738851038771,-506.13247617,0.00013698,2]
[351934883,1738851038781,-500.0,0.00013698,2]
[351934885,1738851038790,-500.0,0.00013698,2]
[351934887,1738851038800,-500.0,0.00013698,2]
[351934889,1738851038809,-500.0,0.00013698,2]
[351934891,1738851038819,-500.0,0.00013698,2]
[351934893,1738851038829,-388.58976229,0.00013698,2]
[351934895,1738851038838,-500.0,0.00013698,2]
[351934897,1738851038847,-500.0,0.00013698,2]
[351934899,1738851038857,-387.40076996,0.00013698,2]
[351934901,1738851038867,-500.0,0.00013698,2]
[351934903,1738851038876,-500.0,0.00013698,2]
[351934905,1738851038885,-500.0,0.00013698,2]
[351934907,1738851038895,-500.0,0.00013698,2]
[351934909,1738851038904,-500.0,0.00013698,2]
[351934911,1738851038913,-500.0,0.00013698,2]
[351934913,1738851038923,-500.0,0.00013698,2]
[351934915,1738851038932,-500.0,0.00013698,2]
[351934917,1738851038941,-500.0,0.00013698,2]
[351934919,1738851038954,-500.0,0.00013698,2]
[351934921,1738851038968,-500.0,0.00013698,2]
[351934923,1738851038977,-1191.99,0.00013698,2]
[351934925,1738851038988,-500.0,0.00013698,2]
[351934928,1738851038998,-787.55,0.00013698,2]
[351934929,1738851039007,-4473.78,0.00013698,2]
[351934931,1738851039016,-961.53,0.00013698,2]
[351934933,1738851039026,-500.0,0.00013698,2]
[351934935,1738851039037,-500.0,0.00013698,2]
[351934937,1738851039047,-500.0,0.00013698,2]
[351934939,1738851039056,-602.47,0.00013698,2]
[351934941,1738851039065,-558.86174959,0.00013698,2]
[351934943,1738851039074,-1808.26,0.00013698,2]
[351934944,1738851039084,-1407.66,0.00013698,2]
[351934945,1738851039093,-226.57920029,0.00013698,2]
[351934946,1738851039102,-500.0,0.00013698,2]
[351934947,1738851039112,-500.0,0.00013698,2]
[351934948,1738851039120,-796.22,0.00013698,2]
[351934949,1738851039129,-301.6149098,0.00013698,2]
[351934950,1738851039139,-500.0,0.00013698,2]
[351934951,1738851039147,-500.0,0.00013698,2]
[351934952,1738851039157,-500.0,0.00013698,2]
[351934953,1738851039166,-556.16199179,0.00013698,2]
[351934954,1738851039176,-500.0,0.00013698,2]
[351934955,1738851039185,-942.47,0.00013698,2]
[351934956,1738851039194,-500.0,0.00013698,2]
[351934957,1738851039204,-500.0,0.00013698,2]
[351934958,1738851039216,-637.05,0.00013698,2]
[351934959,1738851039226,-500.0,0.00013698,2]
[351934960,1738851039236,-500.0,0.00013698,2]
[351934961,1738851039245,-220.91395251,0.00013698,2]
[351934962,1738851039255,-3347.65,0.00013698,2]
[351934963,1738851039264,-500.0,0.00013698,2]
[351934964,1738851039274,-500.0,0.00013698,2]
[351934965,1738851039283,-1987.36,0.00013698,2]
[351934966,1738851039293,-500.0,0.00013698,2]
[351934967,1738851039303,-826.82,0.00013698,2]
[351934968,1738851039312,-500.0,0.00013698,2]
[351934969,1738851039322,-500.0,0.00013698,2]
[351934970,1738851039331,-833.85,0.00013698,2]
[351934971,1738851039341,-500.0,0.00013698,2]
[351934972,1738851039351,-3687.18,0.00013698,2]
[351934973,1738851039360,-500.0,0.00013698,2]
[351934974,1738851039370,-500.0,0.00013698,2]
[351934975,1738851039379,-1535.57,0.00013698,2]
[351934976,1738851039389,-501.31913381,0.00013698,2]
[351934977,1738851039399,-500.0,0.00013698,2]
[351934978,1738851039409,-922.33,0.00013698,2]
[351934979,1738851039419,-500.0,0.00013698,2]
[351934980,1738851039428,-85.95132214,0.00013698,2]
[351934981,1738851039443,-414.04867786,0.00013698,2]
[351934982,1738851039452,-500.0,0.00013698,2]
[351934983,1738851039464,-666.57,0.00013698,2]
[351934984,1738851039473,-1015.56,0.00013698,2]
[351934985,1738851039482,-500.0,0.00013698,2]
[351934986,1738851039491,-500.0,0.00013698,2]
[351934987,1738851039500,-500.0,0.00013698,2]
[351934988,1738851039509,-500.0,0.00013698,2]
[351934989,1738851039518,-500.0,0.00013698,2]
[351934991,1738851039527,-500.0,0.00013698,2]
[351934993,1738851039537,-500.0,0.00013698,2]
[351934994,1738851039546,-500.0,0.00013698,2]
[351934995,1738851039556,-500.0,0.00013698,2]
[351934996,1738851039565,-1287.38,0.00013698,2]
[351934998,1738851039575,-500.0,0.00013698,2]
[351934999,1738851039584,-500.0,0.00013698,2]
[351935000,1738851039593,-500.0,0.00013698,2]
[351935001,1738851039602,-500.0,0.00013698,2]
[351935002,1738851039611,-500.0,0.00013698,2]
[351935004,1738851039621,-500.0,0.00013698,2]
[351935005,1738851039630,-3126.78,0.00013698,2]
[351935006,1738851039640,-500.0,0.00013698,2]
[351935007,1738851039650,-500.0,0.00013698,2]
[351935008,1738851039659,-512.00962202,0.00013698,2]
[351935010,1738851039669,-505.14936998,0.00013698,2]
[351935011,1738851039678,-500.0,0.00013698,2]
[351935012,1738851039688,-500.0,0.00013698,2]
[351935013,1738851039697,-500.0,0.00013698,2]
[351935014,1738851039707,-500.0,0.00013698,2]
[351935015,1738851039720,-500.0,0.00013698,2]
[351935016,1738851039730,-500.0,0.00013698,2]
[351935017,1738851039739,-6963.41,0.00013698,2]
[351935018,1738851039748,-500.0,0.00013698,2]
[351935019,1738851039757,-500.0,0.00013698,2]
[351935020,1738851039766,-1200.01,0.00013698,2]
[351935021,1738851039775,-500.0,0.00013698,2]
[351935022,1738851039785,-500.0,0.00013698,2]
[351935023,1738851039795,-2704.32,0.00013698,2]
[351935025,1738851039804,-500.0,0.00013698,2]
[351935026,1738851039813,-1065.19,0.00013698,2]
[351935028,1738851039822,-2704.32,0.00013698,2]
[351935029,1738851039831,-2704.32,0.00013698,2]
[351935030,1738851039840,-2704.32,0.00013698,2]
[351935031,1738851039849,-2704.32,0.00013698,2]
[351935032,1738851039859,-2704.32,0.00013698,2]
[351935033,1738851039868,-2704.32,0.00013698,2]